bitfinex/quotes_SOLUSD_20251119
["timestamp","ask_amount","ask_price","bid_price","bid_amount"]
[1763580946321,11.35862599,131.47,131.44,0.71]
[1763580947532,11.35862599,131.49,131.44,12.06862599]
[1763580947707,30.12958599,131.5,131.44,12.06862599]
[1763580947907,23.61745368,131.51,131.45,13.88862599]
[1763580948331,11.35862599,131.5,131.46,0.71]
[1763580948903,11.35862599,131.48,131.44,0.71]
[1763580949139,12.00862599,131.5,131.45,11.35862599]
[1763580949319,0.65,131.5,131.44,13.88862599]
[1763580949518,11.35862599,131.49,131.45,0.71]
[1763580949829,11.35862599,131.5,131.45,12.06862599]
[1763580950214,0.69,131.52,131.46,12.02862599]
[1763580950411,12.04862599,131.52,131.47,13.17862599]
[1763580950604,11.35862599,131.52,131.47,13.84862599]
[1763580950808,12.04862599,131.52,131.48,0.67]
[1763580951028,11.35862599,131.52,131.48,0.67]
[1763580951235,11.35862599,131.5,131.47,1.82]
[1763580951445,12.04862599,131.51,131.47,2.49]
[1763580951740,29.47958599,131.52,131.48,0.67]
[1763580951937,29.47958599,131.52,131.47,13.17862599]
[1763580951938,12.04862599,131.51,131.47,1.82]
[1763580952105,11.35862599,131.51,131.47,2.49]
[1763580952303,12.04862599,131.51,131.47,2.49]
[1763580952602,37.7731019,131.52,131.48,0.67]
[1763580952799,11.35862599,131.51,131.48,0.67]
[1763580953005,12.04862599,131.51,131.47,1.82]
[1763580953210,12.04862599,131.51,131.47,2.49]
[1763580953828,11.35862599,131.49,131.44,18.12096]
[1763580954052,11.35862599,131.47,131.43,2.49]
[1763580954228,11.35862599,131.47,131.44,1.82]
[1763580954545,18.96445022,131.48,131.44,2.49]
[1763580954840,19.65445022,131.48,131.44,2.49]
[1763580955405,10.47882769,131.5,131.45,0.67]
[1763580955630,11.35862599,131.48,131.45,0.67]
[1763580957617,10.47882769,131.5,131.45,0.67]
[1763580957824,12.04862599,131.49,131.45,0.67]
[1763580958320,19.65382252,131.49,131.45,0.67]
[1763580959332,11.35862599,131.48,131.45,0.67]
[1763580959845,12.04862599,131.49,131.45,0.67]
[1763580960346,8.29435615,131.51,131.45,12.02862599]
[1763580960554,11.35862599,131.5,131.46,0.67]
[1763580960930,11.35862599,131.47,131.44,57.1]
[1763580961130,11.35862599,131.48,131.45,0.67]
[1763580961325,12.04862599,131.48,131.44,59.59]
[1763580961839,12.04862599,131.47,131.44,57.77]
[1763580962040,0.69,131.47,131.44,57.1]
[1763580962241,0.69,131.47,131.44,57.77]
[1763580962442,11.35862599,131.47,131.44,57.77]
[1763580963451,11.35862599,131.47,131.44,0.67]
[1763580964154,0.69,131.46,131.43,1.82]
[1763580964336,18.96672533,131.44,131.4,0.67]
[1763580964533,11.35862599,131.42,131.38,0.67]
[1763580964758,11.35862599,131.4,131.36,0.67]
[1763580965045,0.69,131.43,131.36,0.67]
[1763580965046,11.35862599,131.39,131.36,2.49]
[1763580965251,11.35862599,131.4,131.36,0.67]
[1763580965472,11.35862599,131.39,131.36,0.67]
[1763580967053,11.35862599,131.39,131.33,1.82]
[1763580967054,11.35862599,131.37,131.33,1.82]
[1763580967360,11.35862599,131.35,131.32,0.1]
[1763580967724,11.35862599,131.35,131.32,0.77]
[1763580968469,11.35862599,131.33,131.32,0.1]
[1763580968958,17.74148784,131.33,131.32,0.1]
[1763580970536,25.35589429,131.33,131.32,0.1]
[1763580973086,43.47685429,131.33,131.32,0.1]
[1763580973288,35.17244784,131.3,131.29,0.1]
[1763580973466,37.68244784,131.3,131.29,0.1]
[1763580974361,37.68244784,131.3,131.28,0.1]
[1763580974547,15.56938648,131.29,131.28,0.1]
[1763580976272,17.05148784,131.29,131.28,0.1]
[1763580976597,18.09555402,131.29,131.28,0.1]
[1763580976899,27.17821417,131.29,131.28,0.1]
[1763580977786,26.48821417,131.29,131.28,0.1]
[1763580978079,7.26266015,131.3,131.28,0.1]
[1763580978452,7.26266015,131.29,131.28,0.1]
[1763580979084,14.87938648,131.29,131.28,0.1]
[1763580979387,27.17821417,131.29,131.28,0.1]
[1763580980281,52.56183432,131.29,131.28,0.1]
[1763580981556,18.12096,131.27,131.26,0.1]
[1763580981762,36.99244784,131.27,131.26,0.1]
[1763580981966,37.69244784,131.27,131.26,0.1]
[1763580982661,45.31033463,131.27,131.26,0.1]
[1763580984002,36.99244784,131.27,131.26,0.1]
[1763580984302,44.61033463,131.27,131.26,0.1]
[1763580985091,36.99244784,131.27,131.26,0.1]
[1763580985294,44.61033463,131.27,131.26,0.1]
[1763580985484,45.31033463,131.27,131.26,0.1]
[1763580986189,43.49033463,131.27,131.26,0.1]
[1763580986390,45.31033463,131.27,131.26,0.1]
[1763580987510,7.26266015,131.27,131.26,0.1]
[1763580988900,15.58054694,131.27,131.26,0.1]
[1763580989120,14.88054694,131.27,131.26,0.1]
[1763580989402,25.36937463,131.27,131.26,0.1]
[1763580991291,27.18937463,131.27,131.26,0.1]
[1763580992001,45.31033463,131.27,131.26,0.1]
[1763580993720,44.61033463,131.27,131.26,0.1]
[1763580994020,37.34767448,131.27,131.26,0.1]
[1763580994420,44.61033463,131.27,131.26,0.1]
[1763580994795,7.26266015,131.28,131.26,0.1]
[1763580994796,7.26266015,131.28,131.26,0.76]
[1763580995043,7.26266015,131.29,131.26,0.76]
[1763580995516,19.94096,131.3,131.26,0.76]
[1763580995833,7.26266015,131.28,131.26,0.76]
[1763580997002,7.26266015,131.27,131.26,0.76]
[1763580997217,14.88054694,131.27,131.26,0.76]
[1763580997419,24.66937463,131.27,131.26,0.1]
[1763580997611,11.60882769,131.27,131.26,0.76]
[1763580997809,14.87955931,131.29,131.26,0.76]
[1763580998028,18.12096,131.3,131.26,0.76]
[1763580998029,34.82000369,131.3,131.26,0.76]
[1763580998333,33.00000369,131.3,131.26,0.76]
[1763580998534,17.05148784,131.31,131.26,0.76]
[1763580998739,7.26266015,131.3,131.26,0.76]
[1763580999040,14.87903471,131.3,131.26,0.76]
[1763580999220,11.60882769,131.31,131.26,0.76]
[1763580999417,19.03407572,131.35,131.27,7.26266015]
[1763580999418,7.26266015,131.33,131.27,7.26266015]
[1763580999813,7.61338593,131.35,131.29,7.26266015]
[1763581000030,7.26266015,131.34,131.3,0.66]
[1763581000626,1.82,131.36,131.31,7.26266015]
[1763581000831,7.26266015,131.36,131.32,0.66]
[1763581001334,7.26266015,131.35,131.32,0.66]
[1763581001534,7.26266015,131.34,131.32,0.66]
[1763581001836,7.26266015,131.35,131.32,0.66]
[1763581002607,7.26266015,131.34,131.32,0.66]
[1763581002809,9.08266015,131.36,131.32,0.66]
[1763581003133,14.87484945,131.37,131.32,0.66]
[1763581003438,7.26266015,131.35,131.32,0.66]
[1763581003940,7.26266015,131.34,131.32,0.66]
[1763581007357,7.26266015,131.34,131.3,0.66]
[1763581007358,7.26266015,131.33,131.3,0.66]
[1763581007516,7.61400667,131.34,131.31,0.66]
[1763581007711,7.61400667,131.34,131.27,27.20362015]
[1763581007712,7.26266015,131.32,131.27,27.20362015]
[1763581007930,7.26266015,131.32,131.28,0.66]
[1763581008735,7.26266015,131.34,131.29,7.26266015]
[1763581009119,7.26266015,131.34,131.3,0.66]
[1763581009324,14.87659373,131.34,131.3,0.66]
[1763581009540,7.26266015,131.33,131.3,0.66]
[1763581010037,7.26266015,131.32,131.3,0.66]
[1763581011532,7.26266015,131.31,131.28,1.82]
[1763581011732,7.26266015,131.31,131.3,0.67]
[1763581012443,7.61498712,131.32,131.3,0.67]
[1763581012655,7.26266015,131.31,131.28,0.67]
[1763581012952,7.26266015,131.3,131.28,0.67]
[1763581016146,7.26266015,131.29,131.28,0.67]
[1763581016344,7.26266015,131.29,131.26,0.77]
[1763581016704,7.6158419,131.31,131.27,0.67]
[1763581016944,7.26266015,131.3,131.27,0.67]
[1763581017518,14.87887317,131.3,131.27,0.67]
[1763581018057,7.26266015,131.31,131.27,0.67]
[1763581018550,7.26266015,131.3,131.27,0.67]
[1763581018947,3.05054365,131.31,131.27,0.67]
[1763581019819,25.73618144,131.32,131.27,57.77]
[1763581020049,3.05054365,131.31,131.27,57.77]
[1763581020343,3.05054365,131.31,131.28,0.67]
[1763581021431,3.05054365,131.32,131.28,0.67]
[1763581021832,3.05054365,131.31,131.28,0.67]
[1763581022439,3.05054365,131.29,131.27,57.1]
[1763581022737,3.05054365,131.29,131.28,0.67]
[1763581022944,3.74054365,131.29,131.27,57.1]
[1763581023243,3.05054365,131.28,131.27,0.67]
[1763581023945,7.61663273,131.3,131.27,0.67]
[1763581024141,3.05054365,131.29,131.27,0.67]
[1763581024347,20.85874238,131.32,131.27,0.67]
[1763581024348,7.61521052,131.32,131.27,0.67]
[1763581024549,3.05054365,131.31,131.27,0.67]
[1763581026457,3.05054365,131.3,131.27,0.67]
[1763581027532,3.05054365,131.29,131.26,0.1]
[1763581027761,3.05054365,131.28,131.27,0.67]
[1763581028367,3.05054365,131.28,131.26,0.1]
[1763581028540,3.05054365,131.28,131.26,0.77]
[1763581030664,9.78882769,131.31,131.26,0.77]
[1763581030969,4.76721466,131.28,131.26,0.77]
[1763581031538,4.76721466,131.27,131.26,0.1]
[1763581032050,5.45721466,131.27,131.26,0.1]
[1763581032762,12.38510145,131.27,131.26,0.1]
[1763581033363,23.21670932,131.27,131.26,0.1]
[1763581033544,27.98392398,131.27,131.26,0.1]
[1763581033739,5.11999484,131.27,131.26,0.1]
[1763581033947,4.76721466,131.27,131.26,0.77]
[1763581034139,12.38510145,131.27,131.26,0.1]
[1763581034540,4.76721466,131.27,131.26,0.77]
[1763581035143,31.34033265,131.3,131.26,0.77]
[1763581035144,17.40534314,131.3,131.26,0.77]
[1763581035352,4.76721466,131.28,131.26,0.77]
[1763581035771,4.76721466,131.29,131.26,0.77]
[1763581036379,25.73671809,131.31,131.26,0.77]
[1763581036571,4.76721466,131.29,131.26,0.77]
[1763581037778,4.76721466,131.28,131.26,0.77]
[1763581038683,4.76721466,131.27,131.26,0.1]
[1763581039880,4.76721466,131.27,131.26,0.82]
[1763581040076,4.76721466,131.28,131.26,0.82]
[1763581040665,4.76721466,131.29,131.26,0.82]
[1763581041477,5.12671262,131.3,131.26,0.82]
[1763581041701,4.76721466,131.29,131.26,0.82]
[1763581041881,4.76721466,131.28,131.26,0.82]
[1763581043688,5.46721466,131.27,131.26,0.1]
[1763581043872,6.58721466,131.28,131.26,0.82]
[1763581044185,12.38455572,131.28,131.26,0.82]
[1763581044495,5.12671262,131.29,131.26,0.82]
[1763581044669,4.76721466,131.29,131.26,0.82]
[1763581045970,4.76721466,131.28,131.26,0.82]
[1763581046175,4.76721466,131.27,131.26,0.1]
[1763581046377,15.56554031,131.3,131.26,0.75]
[1763581046578,4.76721466,131.27,131.26,0.75]
[1763581046791,15.56554031,131.3,131.26,0.75]
[1763581046792,4.76721466,131.28,131.26,0.75]
[1763581047676,9.89392728,131.29,131.26,0.75]
[1763581047866,4.76721466,131.29,131.26,0.75]
[1763581049390,4.76721466,131.3,131.26,0.75]
[1763581049592,4.76721466,131.3,131.26,57.85]
[1763581049982,18.12096,131.31,131.27,0.65]
[1763581050180,4.76721466,131.32,131.27,0.65]
[1763581050386,4.76721466,131.32,131.27,5.41721466]
[1763581050788,4.76721466,131.32,131.28,0.65]
[1763581052078,9.89940353,131.34,131.29,4.76721466]
[1763581052268,5.13218887,131.34,131.29,4.76721466]
[1763581052464,1.82,131.36,131.31,4.76721466]
[1763581052465,5.13218887,131.36,131.31,4.76721466]
[1763581052904,5.13218887,131.38,131.34,4.76721466]
[1763581053204,13.98298159,131.4,131.35,0.65]
[1763581053205,4.76721466,131.37,131.35,0.65]
[1763581053763,4.76721466,131.36,131.3,19.94096]
[1763581053970,4.76721466,131.34,131.32,0.65]
[1763581054240,4.76721466,131.35,131.32,0.65]
[1763581054506,2.47,131.38,131.32,0.65]
[1763581054507,4.76721466,131.36,131.32,0.65]
[1763581054672,4.76721466,131.37,131.32,0.65]
[1763581054871,5.12748721,131.39,131.33,4.76721466]
[1763581055070,4.76721466,131.38,131.33,4.76721466]
[1763581055290,9.89470187,131.39,131.34,5.41721466]
[1763581055477,5.12748721,131.4,131.35,6.58721466]
[1763581055796,4.76721466,131.4,131.35,7.23721466]
[1763581055975,4.76721466,131.4,131.36,0.65]
[1763581056394,4.76721466,131.41,131.36,5.41721466]
[1763581056592,4.76721466,131.41,131.37,0.65]
[1763581056782,4.76721466,131.39,131.37,0.65]
[1763581058285,4.76721466,131.39,131.35,1.82]
[1763581058506,4.76721466,131.39,131.36,0.65]
[1763581059003,4.76721466,131.37,131.32,0.65]
[1763581059210,4.76721466,131.35,131.32,0.65]
[1763581059383,18.77096,131.38,131.32,0.65]
[1763581059384,4.76721466,131.34,131.32,0.65]
[1763581060393,4.76721466,131.33,131.3,0.65]
[1763581060607,4.76721466,131.32,131.3,0.65]
[1763581060809,4.76721466,131.33,131.3,0.65]
[1763581061121,26.38386231,131.36,131.3,0.65]
[1763581061423,4.76721466,131.32,131.3,0.65]
[1763581061730,4.76721466,131.33,131.3,0.65]
[1763581061914,4.76721466,131.32,131.3,0.65]
[1763581062120,4.76721466,131.31,131.3,0.65]
[1763581062320,4.76721466,131.31,131.28,1.82]
[1763581062488,4.76721466,131.31,131.29,0.65]
[1763581062687,4.76721466,131.3,131.29,0.65]
[1763581062918,11.38146457,131.3,131.29,0.65]
[1763581063119,11.38146457,131.3,131.28,1.82]
[1763581063294,11.38146457,131.29,131.28,1.82]
[1763581063492,11.38146457,131.3,131.29,0.65]
[1763581063803,11.38146457,131.3,131.28,1.82]
[1763581064012,11.38146457,131.3,131.28,2.47]
[1763581064516,18.12096,131.35,131.28,2.47]
[1763581064517,18.77096,131.36,131.29,0.65]
[1763581064703,29.50242457,131.34,131.29,0.65]
[1763581065107,11.38146457,131.33,131.29,0.65]
[1763581065821,11.38146457,131.32,131.29,0.65]
[1763581066498,11.38146457,131.31,131.29,0.65]
[1763581066701,11.38146457,131.3,131.26,0.75]
[1763581066891,11.38146457,131.29,131.26,2.57]
[1763581067088,11.38146457,131.3,131.26,2.57]
[1763581067289,11.38146457,131.3,131.27,0.65]
[1763581067522,11.38146457,131.29,131.26,1.92]
[1763581067728,11.38146457,131.27,131.26,0.1]
[1763581069594,0.65,131.34,131.26,0.75]
[1763581069896,11.38146457,131.32,131.26,12.13146457]
[1763581070095,11.38146457,131.31,131.26,12.13146457]
[1763581070318,11.38146457,131.31,131.27,0.7]
[1763581070995,11.38146457,131.34,131.28,11.38146457]
[1763581071194,11.38146457,131.34,131.29,13.20146457]
[1763581071817,11.38146457,131.34,131.3,0.7]
[1763581072493,11.38146457,131.33,131.3,0.7]
[1763581072905,11.38146457,131.33,131.29,1.82]
[1763581072906,11.38146457,131.32,131.29,1.82]
[1763581073103,11.38146457,131.31,131.29,1.82]
[1763581073702,11.38146457,131.31,131.27,0.7]
[1763581074299,11.38146457,131.3,131.26,1.92]
[1763581074521,11.38146457,131.29,131.26,2.62]
[1763581075317,11.38146457,131.3,131.27,0.7]
[1763581075826,29.50242457,131.31,131.27,0.7]
[1763581077828,11.38146457,131.32,131.27,0.7]
[1763581078325,11.38146457,131.32,131.27,12.08146457]
[1763581078505,10.12340782,131.35,131.28,11.38146457]
[1763581078705,11.38146457,131.33,131.28,12.08146457]
[1763581078915,11.38146457,131.33,131.29,0.7]
[1763581079224,11.38146457,131.32,131.29,0.7]
[1763581080328,29.50242457,131.33,131.29,0.7]
[1763581080925,11.38146457,131.32,131.29,0.7]
[1763581081123,11.38146457,131.31,131.27,0.7]
[1763581081433,11.38146457,131.3,131.27,0.7]
[1763581081636,11.38146457,131.32,131.27,0.7]
[1763581082011,11.38146457,131.32,131.27,12.08146457]
[1763581082212,11.38146457,131.32,131.28,0.7]
[1763581082939,11.38146457,131.31,131.28,0.7]
[1763581083143,11.38146457,131.3,131.26,2.62]
[1763581083441,0.69,131.31,131.26,59.72]
[1763581083742,11.38146457,131.3,131.26,59.72]
[1763581083922,11.38146457,131.3,131.27,0.7]
[1763581084120,11.38146457,131.28,131.26,59.02]
[1763581084710,0.69,131.3,131.26,0.1]
[1763581084711,11.38146457,131.27,131.26,0.1]
[1763581085018,39.29125226,131.27,131.26,0.1]
[1763581085215,18.12096,131.24,131.23,0.1]
[1763581085410,31.32242457,131.24,131.23,0.1]
[1763581085610,46.23213211,131.24,131.23,0.1]
[1763581085936,46.73213211,131.24,131.23,0.1]
[1763581086324,41.61125226,131.24,131.23,0.1]
[1763581087134,37.12205273,131.24,131.23,0.1]
[1763581087342,31.82242457,131.24,131.23,0.1]
[1763581087522,63.90609152,131.24,131.23,1e-08]
[1763581087706,54.34462695,131.24,131.23,1e-08]
[1763581088432,9.78882769,131.23,131.22,0.1]
[1763581088604,38.16550336,131.23,131.15,0.7]
[1763581088809,39.98550336,131.22,131.14,0.1]
[1763581089111,47.60629287,131.22,131.14,0.8]
[1763581089317,9.78882769,131.18,131.14,0.1]
[1763581089643,11.38146457,131.16,131.14,0.8]
[1763581089812,11.38146457,131.16,131.14,0.1]
[1763581090534,11.38146457,131.18,131.15,0.7]
[1763581090910,7.2774095,131.18,131.15,0.7]
[1763581091326,7.2774095,131.17,131.14,0.1]
[1763581091540,7.2774095,131.17,131.14,0.8]
[1763581092545,18.12096,131.2,131.14,0.8]
[1763581092832,7.2774095,131.19,131.14,8.0774095]
[1763581093221,7.2774095,131.19,131.15,0.7]
[1763581093419,1.82,131.23,131.16,7.2774095]
[1763581093637,7.2774095,131.21,131.17,0.7]
[1763581093943,19.94096,131.23,131.17,0.7]
[1763581094118,7.2774095,131.2,131.17,0.7]
[1763581094637,7.2774095,131.19,131.15,0.7]
[1763581094938,18.12096,131.21,131.16,0.7]
[1763581095234,18.12096,131.21,131.16,7.9774095]
[1763581095433,7.2774095,131.22,131.17,7.2774095]
[1763581095737,7.2774095,131.22,131.17,7.9774095]
[1763581095927,7.2774095,131.22,131.18,0.7]
[1763581096130,7.2774095,131.2,131.17,0.7]
[1763581096318,7.2774095,131.18,131.15,0.7]
[1763581096644,7.2774095,131.19,131.15,0.7]
[1763581097257,7.2774095,131.18,131.15,0.7]
[1763581097545,7.2774095,131.16,131.14,0.1]
[1763581097752,7.2774095,131.15,131.14,0.1]
[1763581102527,7.7774095,131.15,131.14,0.1]
[1763581102735,7.2774095,131.15,131.14,0.1]
[1763581102943,7.7774095,131.15,131.14,0.1]
[1763581103347,7.2774095,131.15,131.14,0.1]
[1763581104265,7.7774095,131.15,131.14,0.1]
[1763581104436,9.5974095,131.15,131.14,0.1]
[1763581104638,0.5,131.17,131.14,0.1]
[1763581104846,7.2774095,131.15,131.14,0.1]
[1763581105919,7.2774095,131.15,131.14,0.81]
[1763581106832,1.82,131.18,131.14,0.81]
[1763581107064,7.2774095,131.15,131.14,0.81]
[1763581108129,7.2774095,131.15,131.14,0.1]
[1763581109150,7.2774095,131.15,131.14,0.81]
[1763581110059,18.12096,131.22,131.14,0.81]
[1763581110060,18.12096,131.17,131.14,0.81]
[1763581110262,7.2774095,131.18,131.14,8.0874095]
[1763581110772,7.2774095,131.18,131.15,0.71]
[1763581111440,7.2774095,131.2,131.16,9.78882769]
[1763581111660,7.2774095,131.2,131.17,0.71]
[1763581112459,7.2774095,131.22,131.18,9.78882769]
[1763581112656,7.2774095,131.21,131.19,0.71]
[1763581113060,7.2774095,131.22,131.19,0.71]
[1763581113247,1.82,131.23,131.19,0.71]
[1763581113437,7.2774095,131.22,131.19,0.71]
[1763581113634,7.2774095,131.21,131.19,0.71]
[1763581113857,1.82,131.24,131.19,0.71]
[1763581114056,7.2774095,131.22,131.19,0.71]
[1763581114269,7.2774095,131.21,131.19,0.71]
[1763581114844,7.2774095,131.23,131.19,0.71]
[1763581115050,2.32,131.27,131.19,7.9874095]
[1763581115270,7.2774095,131.25,131.21,9.78882769]
[1763581115643,7.2774095,131.25,131.22,0.71]
[1763581115851,7.2774095,131.24,131.22,0.71]
[1763581116046,7.2774095,131.23,131.2,0.71]
[1763581116251,7.2774095,131.22,131.2,0.71]
[1763581116549,7.2774095,131.23,131.2,0.71]
[1763581116777,7.2774095,131.22,131.2,0.71]
[1763581117176,7.2774095,131.23,131.2,0.71]
[1763581118253,18.12096,131.25,131.2,0.71]
[1763581118455,7.2774095,131.23,131.2,57.81]
[1763581118648,7.2774095,131.25,131.2,7.9874095]
[1763581118848,7.2774095,131.25,131.21,0.71]
[1763581119372,7.2774095,131.23,131.2,0.71]
[1763581119669,7.2774095,131.22,131.21,0.71]
[1763581119973,1.82,131.27,131.21,0.71]
[1763581120169,7.2774095,131.24,131.21,0.71]
[1763581120373,7.2774095,131.25,131.21,0.71]
[1763581120949,7.2774095,131.26,131.21,7.9874095]
[1763581121172,7.2774095,131.25,131.22,9.78882769]
[1763581121367,7.2774095,131.25,131.22,10.49882769]
[1763581121569,7.2774095,131.27,131.23,0.71]
[1763581122455,7.2774095,131.26,131.23,0.71]
[1763581122673,18.62096,131.29,131.23,0.71]
[1763581122853,7.2774095,131.25,131.23,0.71]
[1763581123454,7.2774095,131.24,131.23,0.71]
[1763581123984,7.2774095,131.25,131.23,0.71]
[1763581124279,7.2774095,131.24,131.23,0.71]
[1763581124483,7.7774095,131.24,131.19,0.71]
[1763581124784,7.2774095,131.2,131.16,9.0974095]
[1763581124981,7.41980768,131.26,131.17,17.06623719]
[1763581125186,7.2774095,131.22,131.18,7.2774095]
[1763581125481,7.2774095,131.22,131.18,0.71]
[1763581125660,7.2774095,131.22,131.19,0.71]
[1763581127886,7.2774095,131.21,131.19,0.71]
[1763581128553,7.2774095,131.2,131.17,0.71]
[1763581128850,7.2774095,131.19,131.16,2.53]
[1763581129304,7.2774095,131.19,131.17,0.71]
[1763581130264,7.2774095,131.2,131.17,0.71]
[1763581130469,7.2774095,131.2,131.17,10.49882769]
[1763581130967,7.2774095,131.2,131.18,0.71]
[1763581131792,7.2774095,131.19,131.16,2.53]
[1763581132184,7.2774095,131.19,131.17,0.71]
[1763581132883,7.2774095,131.2,131.17,10.49882769]
[1763581134488,7.2774095,131.19,131.17,0.71]
[1763581135490,7.2774095,131.2,131.17,0.71]
[1763581135787,7.2774095,131.2,131.17,57.81]
[1763581135982,7.2774095,131.19,131.17,57.81]
[1763581136766,3.05590315,131.19,131.17,57.81]
[1763581137163,3.05590315,131.19,131.14,3.15590315]
[1763581137370,3.05590315,131.18,131.16,0.71]
[1763581137580,18.62096,131.21,131.16,0.71]
[1763581137757,3.05590315,131.19,131.16,0.71]
[1763581140387,3.05590315,131.21,131.17,9.78882769]
[1763581140766,3.55590315,131.21,131.17,9.78882769]
[1763581140967,3.05590315,131.19,131.16,1.82]
[1763581141470,3.05590315,131.19,131.16,2.53]
[1763581141799,3.05590315,131.19,131.17,0.71]
[1763581142087,3.05590315,131.19,131.16,2.53]
[1763581142286,3.05590315,131.2,131.17,0.71]
[1763581142499,3.05590315,131.18,131.16,1.82]
[1763581142678,3.05590315,131.18,131.16,59.63]
[1763581142991,3.05590315,131.19,131.16,59.63]
[1763581143393,3.05590315,131.17,131.14,9.88882769]
[1763581143575,0.5,131.18,131.14,9.88882769]
[1763581143576,3.05590315,131.16,131.14,9.88882769]
[1763581143777,3.05590315,131.15,131.14,0.1]
[1763581144174,3.55590315,131.15,131.14,0.1]
[1763581144887,3.05590315,131.16,131.14,0.1]
[1763581145485,3.05590315,131.17,131.14,0.81]
[1763581146411,3.05590315,131.16,131.14,0.1]
[1763581146589,3.05590315,131.15,131.14,0.1]
[1763581146815,0.5,131.16,131.14,0.1]
[1763581147900,17.84536187,131.18,131.14,0.1]
[1763581148100,3.05590315,131.15,131.14,0.1]
[1763581151589,3.55590315,131.15,131.14,0.1]
[1763581151792,3.05590315,131.15,131.14,0.1]
[1763581152009,3.55590315,131.15,131.14,0.1]
[1763581152218,3.05590315,131.15,131.14,0.1]
[1763581153010,5.278911,131.15,131.14,0.1]
[1763581153918,18.62096,131.17,131.14,0.1]
[1763581154219,4.778911,131.16,131.14,0.81]
[1763581154392,4.778911,131.16,131.14,0.1]
[1763581154712,4.778911,131.17,131.14,0.81]
[1763581154910,4.778911,131.18,131.14,0.81]
[1763581155418,4.778911,131.17,131.14,0.81]
[1763581155586,18.62096,131.2,131.14,0.1]
[1763581155587,4.778911,131.15,131.14,0.1]
[1763581156010,5.278911,131.15,131.14,0.1]
[1763581156709,7.098911,131.15,131.14,0.1]
[1763581156915,12.22383432,131.15,131.13,0.1]
[1763581157116,0.5,131.14,131.13,0.1]
[1763581157320,7.098911,131.14,131.13,0.1]
[1763581158196,4.778911,131.14,131.13,0.1]
[1763581158794,11.41357731,131.14,131.13,0.1]
[1763581162487,11.91357731,131.14,131.13,0.1]
[1763581165307,17.03076529,131.14,131.13,0.1]
[1763581166046,38.23317029,131.14,131.13,0.1]
[1763581166204,18.85076529,131.14,131.13,0.1]
[1763581166526,13.73357731,131.14,131.13,0.1]
[1763581167221,11.91357731,131.14,131.13,0.1]
[1763581167399,13.73357731,131.14,131.13,0.1]
[1763581167797,25.14715462,131.14,131.13,0.1]
[1763581168020,30.2643426,131.14,131.13,0.1]
[1763581169406,18.85076529,131.14,131.13,0.1]
[1763581169607,20.44096,131.14,131.13,0.1]
[1763581169807,36.97172529,131.14,131.13,0.1]
[1763581170320,31.35453731,131.14,131.13,0.1]
[1763581170707,31.85453731,131.14,131.13,0.1]
[1763581171105,36.97235646,131.14,131.13,0.1]
[1763581171728,31.85453731,131.14,131.13,0.1]
[1763581172104,36.97271659,131.14,131.13,0.1]
[1763581173625,18.85175659,131.14,131.13,0.1]
[1763581173829,25.14715462,131.14,131.13,0.1]
[1763581174024,30.2653339,131.14,131.13,0.1]
[1763581174408,36.97271659,131.14,131.13,0.1]
[1763581174605,48.3862939,131.14,131.13,0.1]
[1763581175014,36.97271659,131.14,131.13,0.1]
[1763581176403,34.65271659,131.14,131.13,0.1]
[1763581176626,11.41357731,131.14,131.13,0.1]
[1763581177105,13.23357731,131.14,131.13,0.1]
[1763581178905,6.60052308,131.14,131.13,0.1]